[Event "Titled Tuesday Blitz June 6 Early 2023"]
[White "Makarian, Rudik"]
[Black "Pranav Anand"]
[WhiteFideId "44105681"]
[BlackFideId "46626786"]
[WhiteElo "2451"]
[BlackElo "2389"]
[Result "1-0"]
[Round "10"]
[TimeControl "180+2"]
[Date "2023.06.06"]
[WhiteClock "0:00:10"]
[BlackClock "0:00:10"]
[Board "12"]

1. d4 {[%clk 0:03:00]}  Nf6 {[%clk 0:03:00]} 2. c4 {[%clk 0:03:01]}  e6 {[%clk 0:03:00]} 3. Nf3 {[%clk 0:03:02]}  d5 {[%clk 0:03:00]} 4. g3 {[%clk 0:03:03]}  Bb4+ {[%clk 0:02:56]} 5. Bd2 {[%clk 0:03:03]}  Be7 {[%clk 0:02:56]} 6. Bg2 {[%clk 0:03:03]}  O-O {[%clk 0:02:56]} 7. Qc2 {[%clk 0:03:04]}  c6 {[%clk 0:02:56]} 8. O-O {[%clk 0:03:05]}  Nbd7 {[%clk 0:02:57]} 9. Bf4 {[%clk 0:03:05]}  Ne4 {[%clk 0:02:57]} 10. h4 {[%clk 0:03:03]}  h6 {[%clk 0:02:57]} 11. Nc3 {[%clk 0:03:01]}  g5 {[%clk 0:02:55]} 12. hxg5 {[%clk 0:03:01]}  hxg5 {[%clk 0:02:56]} 13. Be3 {[%clk 0:03:01]}  f5 {[%clk 0:02:56]} 14. g4 {[%clk 0:03:02]}  fxg4 {[%clk 0:02:11]} 15. Ne5 {[%clk 0:01:57]}  Ndf6 {[%clk 0:02:06]} 16. Nxe4 {[%clk 0:01:51]}  dxe4 {[%clk 0:02:05]} 17. Bxe4 {[%clk 0:01:43]}  Kg7 {[%clk 0:02:00]} 18. Kg2 {[%clk 0:01:41]}  Bd7 {[%clk 0:01:39]} 19. Rh1 {[%clk 0:01:34]}  Be8 {[%clk 0:01:38]} 20. Bg6 {[%clk 0:01:28]}  c5 {[%clk 0:00:34]} 21. Bxe8 {[%clk 0:01:10]}  Qxe8 {[%clk 0:00:34]} 22. Bxg5 {[%clk 0:01:11]}  Nh5 {[%clk 0:00:17]} 23. Bxe7 {[%clk 0:01:09]}  Nf4+ {[%clk 0:00:18]} 24. Kg3 {[%clk 0:00:37]}  Nh5+ {[%clk 0:00:13]} 25. Rxh5 {[%clk 0:00:20]}  Qxh5 {[%clk 0:00:14]} 26. Bxf8+ {[%clk 0:00:20]}  Rxf8 {[%clk 0:00:13]} 27. Nxg4 {[%clk 0:00:20]}  Rh8 {[%clk 0:00:13]} 28. f3 {[%clk 0:00:15]}  Qh4+ {[%clk 0:00:10]} 29. Kg2 {[%clk 0:00:14]}  Qh3+ {[%clk 0:00:08]} 30. Kf2 {[%clk 0:00:14]}  Qh4+ {[%clk 0:00:09]} 31. Ke3 {[%clk 0:00:14]}  Qg5+ {[%clk 0:00:09]} 32. Kd3 {[%clk 0:00:13]}  Rd8 {[%clk 0:00:10]} 33. e3 {[%clk 0:00:12]}  cxd4 {[%clk 0:00:10]} 34. e4 {[%clk 0:00:12]}  Qf4 {[%clk 0:00:10]} 35. Qg2 {[%clk 0:00:11]}  Kf7 {[%clk 0:00:09]} 36. Rh1 {[%clk 0:00:10]}  Ke7 {[%clk 0:00:09]} 37. Rh7+ {[%clk 0:00:10]}  Kd6 {[%clk 0:00:09]} 38. Qh2 {[%clk 0:00:10]}  Qxh2 {[%clk 0:00:10]} 39. Rxh2 {[%clk 0:00:11]}  b5 {[%clk 0:00:10]} 40. cxb5 {[%clk 0:00:11]}  Kc5 {[%clk 0:00:10]} 41. Rc2+ {[%clk 0:00:11]}  Kxb5 {[%clk 0:00:10]} 42. Ne5 {[%clk 0:00:12]}  a5 {[%clk 0:00:11]} 43. f4 {[%clk 0:00:12]}  Ka4 {[%clk 0:00:10]} 44. Rc5 {[%clk 0:00:11]}  Kb4 {[%clk 0:00:10]} 45. Nc6+ {[%clk 0:00:10]} 1-0


[Site "https://www.chess.com"]

[Event "Titled Tuesday Blitz June 6 Early 2023"]
[White "Sanal, Vahap"]
[Black "Horvath, Dominik"]
[WhiteFideId "6300545"]
[BlackFideId "1642561"]
[WhiteElo "2606"]
[BlackElo "2407"]
[Result "1-0"]
[Round "10"]
[TimeControl "180+2"]
[Date "2023.06.06"]
[WhiteClock "0:00:47"]
[BlackClock "0:00:02"]
[Board "13"]

1. b3 {[%clk 0:03:00]}  e5 {[%clk 0:02:59]} 2. Bb2 {[%clk 0:03:01]}  Nc6 {[%clk 0:02:59]} 3. e3 {[%clk 0:03:01]}  d5 {[%clk 0:02:59]} 4. Bb5 {[%clk 0:03:00]}  Ne7 {[%clk 0:03:00]} 5. Ne2 {[%clk 0:02:59]}  a6 {[%clk 0:03:00]} 6. Bxc6+ {[%clk 0:03:00]}  Nxc6 {[%clk 0:03:01]} 7. O-O {[%clk 0:03:00]}  Bg4 {[%clk 0:02:58]} 8. f3 {[%clk 0:03:00]}  Bf5 {[%clk 0:02:55]} 9. Ng3 {[%clk 0:03:00]}  Bg6 {[%clk 0:02:55]} 10. f4 {[%clk 0:03:00]}  f6 {[%clk 0:02:39]} 11. Nc3 {[%clk 0:02:53]}  Qd7 {[%clk 0:02:36]} 12. Qf3 {[%clk 0:02:51]}  O-O-O {[%clk 0:02:34]} 13. f5 {[%clk 0:02:47]}  Bf7 {[%clk 0:02:33]} 14. Nce2 {[%clk 0:02:48]}  h5 {[%clk 0:02:26]} 15. h4 {[%clk 0:02:47]}  Be7 {[%clk 0:02:11]} 16. a3 {[%clk 0:02:45]}  Rdg8 {[%clk 0:02:09]} 17. d3 {[%clk 0:02:43]}  g6 {[%clk 0:02:09]} 18. e4 {[%clk 0:02:40]}  g5 {[%clk 0:02:06]} 19. exd5 {[%clk 0:02:38]}  Bxd5 {[%clk 0:02:02]} 20. Ne4 {[%clk 0:02:39]}  gxh4 {[%clk 0:01:58]} 21. Qe3 {[%clk 0:02:33]}  Rg4 {[%clk 0:01:56]} 22. Rf2 {[%clk 0:02:32]}  Rhg8 {[%clk 0:01:50]} 23. Kh1 {[%clk 0:02:27]}  Nd8 {[%clk 0:01:33]} 24. Qa7 {[%clk 0:02:11]}  b6 {[%clk 0:01:16]} 25. Qxa6+ {[%clk 0:02:05]}  Bb7 {[%clk 0:01:15]} 26. Qc4 {[%clk 0:02:06]}  Bd5 {[%clk 0:00:53]} 27. Qa6+ {[%clk 0:02:04]}  Kb8 {[%clk 0:00:53]} 28. N2c3 {[%clk 0:02:01]}  Bb7 {[%clk 0:00:53]} 29. Qc4 {[%clk 0:02:01]}  Bc5 {[%clk 0:00:32]} 30. Nxf6 {[%clk 0:01:44]}  Bxf2 {[%clk 0:00:14]} 31. Nxd7+ {[%clk 0:01:44]}  Ka8 {[%clk 0:00:14]} 32. Ne4 {[%clk 0:01:41]}  b5 {[%clk 0:00:09]} 33. Qxb5 {[%clk 0:01:41]}  Rxg2 {[%clk 0:00:10]} 34. Qa5+ {[%clk 0:01:37]}  Ba7 {[%clk 0:00:10]} 35. f6 {[%clk 0:01:21]}  R2g3 {[%clk 0:00:10]} 36. Kh2 {[%clk 0:01:14]}  Rg2+ {[%clk 0:00:09]} 37. Kh3 {[%clk 0:01:14]}  Bc8 {[%clk 0:00:05]} 38. Qd5+ {[%clk 0:01:12]}  c6 {[%clk 0:00:05]} 39. Qd6 {[%clk 0:01:07]}  Nf7 {[%clk 0:00:05]} 40. Qxc6+ {[%clk 0:01:07]}  Bb7 {[%clk 0:00:06]} 41. Nb6+ {[%clk 0:00:50]}  Bxb6 {[%clk 0:00:05]} 42. Qxb6 {[%clk 0:00:51]}  Bxe4 {[%clk 0:00:02]} 43. Qa5+ {[%clk 0:00:47]}  Kb8 {[%clk 0:00:02]} 44. Bxe5+ {[%clk 0:00:47]} 1-0


[Site "https://www.chess.com"]

[Event "Titled Tuesday Blitz June 6 Early 2023"]
[White "Papasimakopoulos, Alexandros"]
[Black "Elsa167"]
[WhiteFideId "4244125"]
[WhiteElo "2359"]
[BlackElo "2905"]
[Result "1/2-1/2"]
[Round "10"]
[TimeControl "180+2"]
[Date "2023.06.06"]
[WhiteClock "0:00:08"]
[BlackClock "0:00:03"]
[Board "14"]

1. d4 {[%clk 0:03:00]}  Nf6 {[%clk 0:02:59]} 2. c4 {[%clk 0:03:01]}  g6 {[%clk 0:02:59]} 3. Nc3 {[%clk 0:03:01]}  Bg7 {[%clk 0:03:00]} 4. Bg5 {[%clk 0:03:02]}  d6 {[%clk 0:03:00]} 5. e3 {[%clk 0:03:02]}  h6 {[%clk 0:02:56]} 6. Bh4 {[%clk 0:03:02]}  O-O {[%clk 0:02:56]} 7. Be2 {[%clk 0:03:02]}  c5 {[%clk 0:02:55]} 8. Nf3 {[%clk 0:03:02]}  Bg4 {[%clk 0:02:40]} 9. O-O {[%clk 0:02:59]}  Nc6 {[%clk 0:02:32]} 10. h3 {[%clk 0:02:55]}  Bf5 {[%clk 0:02:30]} 11. d5 {[%clk 0:02:53]}  Na5 {[%clk 0:02:29]} 12. Nd2 {[%clk 0:02:49]}  e5 {[%clk 0:02:24]} 13. dxe6 {[%clk 0:02:37]}  Bxe6 {[%clk 0:02:24]} 14. Rc1 {[%clk 0:02:27]}  a6 {[%clk 0:02:15]} 15. b3 {[%clk 0:02:24]}  Nc6 {[%clk 0:02:11]} 16. Nde4 {[%clk 0:02:22]}  g5 {[%clk 0:02:07]} 17. Bg3 {[%clk 0:02:22]}  Nxe4 {[%clk 0:02:04]} 18. Nxe4 {[%clk 0:02:23]}  f5 {[%clk 0:01:46]} 19. Qxd6 {[%clk 0:02:18]}  Qxd6 {[%clk 0:01:45]} 20. Nxd6 {[%clk 0:02:18]}  f4 {[%clk 0:01:45]} 21. exf4 {[%clk 0:02:14]}  gxf4 {[%clk 0:01:46]} 22. Bh4 {[%clk 0:02:14]}  Nd4 {[%clk 0:01:38]} 23. Bd3 {[%clk 0:02:12]}  f3 {[%clk 0:01:29]} 24. g4 {[%clk 0:01:56]}  h5 {[%clk 0:01:26]} 25. Nxb7 {[%clk 0:01:55]}  Rac8 {[%clk 0:01:01]} 26. Nd6 {[%clk 0:01:47]}  Rc6 {[%clk 0:01:00]} 27. Nf5 {[%clk 0:01:45]}  Nxf5 {[%clk 0:00:53]} 28. gxf5 {[%clk 0:01:44]}  Bxf5 {[%clk 0:00:54]} 29. Bxf5 {[%clk 0:01:44]}  Rxf5 {[%clk 0:00:54]} 30. Rfe1 {[%clk 0:01:36]}  Rg6+ {[%clk 0:00:49]} 31. Kh1 {[%clk 0:01:29]}  Bd4 {[%clk 0:00:41]} 32. Rg1 {[%clk 0:01:24]}  Kf7 {[%clk 0:00:36]} 33. Rxg6 {[%clk 0:01:24]}  Kxg6 {[%clk 0:00:37]} 34. Bg3 {[%clk 0:01:17]}  h4 {[%clk 0:00:33]} 35. Bxh4 {[%clk 0:01:02]}  Rh5 {[%clk 0:00:33]} 36. Rg1+ {[%clk 0:01:02]}  Kf5 {[%clk 0:00:34]} 37. Rg4 {[%clk 0:00:54]}  Bxf2 {[%clk 0:00:34]} 38. Bxf2 {[%clk 0:00:50]}  Rxh3+ {[%clk 0:00:34]} 39. Kg1 {[%clk 0:00:51]}  Kxg4 {[%clk 0:00:35]} 40. Bxc5 {[%clk 0:00:51]}  Rg3+ {[%clk 0:00:32]} 41. Kf1 {[%clk 0:00:50]}  Rg2 {[%clk 0:00:33]} 42. Bf2 {[%clk 0:00:51]}  Rh2 {[%clk 0:00:29]} 43. Kg1 {[%clk 0:00:51]}  Rh5 {[%clk 0:00:23]} 44. b4 {[%clk 0:00:50]}  Kf4 {[%clk 0:00:20]} 45. a4 {[%clk 0:00:49]}  Ke4 {[%clk 0:00:18]} 46. b5 {[%clk 0:00:48]}  axb5 {[%clk 0:00:19]} 47. axb5 {[%clk 0:00:44]}  Kd3 {[%clk 0:00:19]} 48. b6 {[%clk 0:00:26]}  Kxc4 {[%clk 0:00:15]} 49. Bg3 {[%clk 0:00:24]}  Rb5 {[%clk 0:00:09]} 50. Kf2 {[%clk 0:00:23]}  Rb3 {[%clk 0:00:05]} 51. b7 {[%clk 0:00:23]}  Rxb7 {[%clk 0:00:05]} 52. Kxf3 {[%clk 0:00:23]}  Kd5 {[%clk 0:00:06]} 53. Kf2 {[%clk 0:00:21]}  Ke4 {[%clk 0:00:06]} 54. Bd6 {[%clk 0:00:21]}  Rb2+ {[%clk 0:00:05]} 55. Kg3 {[%clk 0:00:20]}  Rb6 {[%clk 0:00:04]} 56. Bc7 {[%clk 0:00:20]}  Rg6+ {[%clk 0:00:04]} 57. Kf2 {[%clk 0:00:20]}  Rf6+ {[%clk 0:00:04]} 58. Kg2 {[%clk 0:00:20]}  Ke3 {[%clk 0:00:04]} 59. Bd8 {[%clk 0:00:19]}  Rg6+ {[%clk 0:00:05]} 60. Kf1 {[%clk 0:00:19]}  Rd6 {[%clk 0:00:03]} 61. Be7 {[%clk 0:00:17]}  Rd7 {[%clk 0:00:04]} 62. Bc5+ {[%clk 0:00:17]}  Kf3 {[%clk 0:00:04]} 63. Kg1 {[%clk 0:00:17]}  Rd1+ {[%clk 0:00:04]} 64. Kh2 {[%clk 0:00:17]}  Rd2+ {[%clk 0:00:05]} 65. Kh1 {[%clk 0:00:17]}  Kg3 {[%clk 0:00:06]} 66. Bg1 {[%clk 0:00:16]}  Kh3 {[%clk 0:00:06]} 67. Bc5 {[%clk 0:00:13]}  Kg3 {[%clk 0:00:06]} 68. Bg1 {[%clk 0:00:12]}  Rd5 {[%clk 0:00:04]} 69. Bh2+ {[%clk 0:00:11]}  Kf3 {[%clk 0:00:04]} 70. Bc7 {[%clk 0:00:12]}  Rd1+ {[%clk 0:00:04]} 71. Kh2 {[%clk 0:00:12]}  Rb1 {[%clk 0:00:03]} 72. Bd6 {[%clk 0:00:11]}  Rb7 {[%clk 0:00:03]} 73. Kh1 {[%clk 0:00:11]}  Rh7+ {[%clk 0:00:03]} 74. Kg1 {[%clk 0:00:10]}  Rd7 {[%clk 0:00:04]} 75. Bc5 {[%clk 0:00:10]}  Kg3 {[%clk 0:00:04]} 76. Kh1 {[%clk 0:00:09]}  Rh7+ {[%clk 0:00:03]} 77. Kg1 {[%clk 0:00:10]}  Rh5 {[%clk 0:00:04]} 78. Bf2+ {[%clk 0:00:09]}  Kf3 {[%clk 0:00:04]} 79. Bb6 {[%clk 0:00:09]}  Rg5+ {[%clk 0:00:04]} 80. Kh1 {[%clk 0:00:10]}  Rd5 {[%clk 0:00:04]} 81. Bc7 {[%clk 0:00:10]}  Rc5 {[%clk 0:00:03]} 82. Bd6 {[%clk 0:00:10]}  Rg5 {[%clk 0:00:02]} 83. Bc7 {[%clk 0:00:10]}  Rg6 {[%clk 0:00:02]} 84. Bb8 {[%clk 0:00:10]}  Rh6+ {[%clk 0:00:02]} 85. Kg1 {[%clk 0:00:10]}  Rc6 {[%clk 0:00:03]} 86. Be5 {[%clk 0:00:10]}  Rc1+ {[%clk 0:00:02]} 87. Kh2 {[%clk 0:00:10]}  Kf2 {[%clk 0:00:03]} 88. Bd4+ {[%clk 0:00:10]}  Ke2 {[%clk 0:00:03]} 89. Be5 {[%clk 0:00:11]}  Ke3 {[%clk 0:00:03]} 90. Kg3 {[%clk 0:00:10]}  Rg1+ {[%clk 0:00:03]} 91. Kh2 {[%clk 0:00:11]}  Rg6 {[%clk 0:00:04]} 92. Bc7 {[%clk 0:00:11]}  Kf2 {[%clk 0:00:04]} 93. Kh1 {[%clk 0:00:09]}  Rc6 {[%clk 0:00:04]} 94. Bf4 {[%clk 0:00:09]}  Rc4 {[%clk 0:00:03]} 95. Be5 {[%clk 0:00:08]}  Re4 {[%clk 0:00:04]} 96. Bd6 {[%clk 0:00:09]}  Rg4 {[%clk 0:00:02]} 97. Bc5+ {[%clk 0:00:08]}  Kf1 {[%clk 0:00:03]} 98. Kh2 {[%clk 0:00:08]}  Rc4 {[%clk 0:00:03]} 99. Bb6 {[%clk 0:00:08]}  Rc3 {[%clk 0:00:03]} 100. Ba7 {[%clk 0:00:07]}  Ke2 {[%clk 0:00:03]} 101. Bb6 {[%clk 0:00:07]}  Kf3 {[%clk 0:00:03]} 102. Kh1 {[%clk 0:00:08]} 1/2-1/2


[Site "https://www.chess.com"]

[Event "Titled Tuesday Blitz June 6 Early 2023"]
[White "Reprintsev, Alexander"]
[Black "Kukhmazov, Arsen"]
[WhiteFideId "14100541"]
[BlackFideId "24108260"]
[WhiteElo "2229"]
[BlackElo "2396"]
[Result "0-1"]
[Round "10"]
[TimeControl "180+2"]
[Date "2023.06.06"]
[WhiteClock "0:00:14"]
[BlackClock "0:00:15"]
[Board "17"]

1. e4 {[%clk 0:03:00]}  e5 {[%clk 0:02:59]} 2. Nf3 {[%clk 0:03:00]}  Nc6 {[%clk 0:03:00]} 3. Bc4 {[%clk 0:03:00]}  Bc5 {[%clk 0:03:00]} 4. b4 {[%clk 0:02:59]}  Bxb4 {[%clk 0:03:01]} 5. c3 {[%clk 0:02:59]}  Ba5 {[%clk 0:03:00]} 6. d4 {[%clk 0:03:00]}  d6 {[%clk 0:03:01]} 7. Qb3 {[%clk 0:03:00]}  Qd7 {[%clk 0:03:01]} 8. O-O {[%clk 0:02:58]}  Bb6 {[%clk 0:02:52]} 9. Nbd2 {[%clk 0:02:58]}  Na5 {[%clk 0:02:48]} 10. Qc2 {[%clk 0:02:58]}  Nxc4 {[%clk 0:02:46]} 11. Nxc4 {[%clk 0:02:59]}  f6 {[%clk 0:02:46]} 12. a4 {[%clk 0:02:55]}  c6 {[%clk 0:02:39]} 13. Nxb6 {[%clk 0:02:51]}  axb6 {[%clk 0:02:39]} 14. Rb1 {[%clk 0:02:52]}  Qc7 {[%clk 0:02:37]} 15. Qb3 {[%clk 0:02:48]}  Ne7 {[%clk 0:02:33]} 16. Ba3 {[%clk 0:02:47]}  Ra6 {[%clk 0:02:24]} 17. Rb2 {[%clk 0:02:47]}  Bg4 {[%clk 0:02:21]} 18. Nd2 {[%clk 0:02:45]}  Qd7 {[%clk 0:02:03]} 19. dxe5 {[%clk 0:01:53]}  dxe5 {[%clk 0:01:51]} 20. a5 {[%clk 0:01:46]}  b5 {[%clk 0:01:38]} 21. Bc5 {[%clk 0:01:42]}  Be6 {[%clk 0:01:31]} 22. Qb4 {[%clk 0:01:41]}  Kf7 {[%clk 0:01:26]} 23. c4 {[%clk 0:01:34]}  Rha8 {[%clk 0:01:11]} 24. cxb5 {[%clk 0:01:33]}  Rxa5 {[%clk 0:01:10]} 25. Bxe7 {[%clk 0:01:25]}  Qxe7 {[%clk 0:01:11]} 26. Qxe7+ {[%clk 0:01:25]}  Kxe7 {[%clk 0:01:12]} 27. bxc6 {[%clk 0:01:25]}  bxc6 {[%clk 0:01:12]} 28. Rb7+ {[%clk 0:01:25]}  Bd7 {[%clk 0:01:12]} 29. Nc4 {[%clk 0:00:52]}  R5a7 {[%clk 0:01:13]} 30. Rb6 {[%clk 0:00:52]}  Ra4 {[%clk 0:01:05]} 31. Ne3 {[%clk 0:00:48]}  Rxe4 {[%clk 0:01:03]} 32. Rd1 {[%clk 0:00:45]}  Rd4 {[%clk 0:01:03]} 33. Rc1 {[%clk 0:00:44]}  g6 {[%clk 0:01:00]} 34. g4 {[%clk 0:00:41]}  Ra2 {[%clk 0:00:57]} 35. Rb7 {[%clk 0:00:38]}  Ke6 {[%clk 0:00:37]} 36. h3 {[%clk 0:00:36]}  h5 {[%clk 0:00:32]} 37. gxh5 {[%clk 0:00:35]}  gxh5 {[%clk 0:00:33]} 38. Rb8 {[%clk 0:00:33]}  Kf7 {[%clk 0:00:31]} 39. Rh8 {[%clk 0:00:30]}  Kg6 {[%clk 0:00:31]} 40. Rg8+ {[%clk 0:00:29]}  Kh7 {[%clk 0:00:31]} 41. Rg2 {[%clk 0:00:27]}  Rda4 {[%clk 0:00:25]} 42. Rd1 {[%clk 0:00:27]}  Ra1 {[%clk 0:00:25]} 43. Kh2 {[%clk 0:00:27]}  Rxd1 {[%clk 0:00:25]} 44. Nxd1 {[%clk 0:00:27]}  Ra3 {[%clk 0:00:25]} 45. Ne3 {[%clk 0:00:24]}  c5 {[%clk 0:00:24]} 46. Nc4 {[%clk 0:00:24]}  Rxh3+ {[%clk 0:00:23]} 47. Kg1 {[%clk 0:00:23]}  Rc3 {[%clk 0:00:24]} 48. Nb6 {[%clk 0:00:23]}  Be6 {[%clk 0:00:23]} 49. Na8 {[%clk 0:00:22]}  c4 {[%clk 0:00:22]} 50. Nc7 {[%clk 0:00:21]}  Bf7 {[%clk 0:00:21]} 51. Kh2 {[%clk 0:00:20]}  Rc1 {[%clk 0:00:19]} 52. Nb5 {[%clk 0:00:18]}  Bd5 {[%clk 0:00:20]} 53. Rg1 {[%clk 0:00:12]}  Rxg1 {[%clk 0:00:19]} 54. Kxg1 {[%clk 0:00:13]}  Kg6 {[%clk 0:00:19]} 55. Nc3 {[%clk 0:00:13]}  Be6 {[%clk 0:00:20]} 56. Kh2 {[%clk 0:00:14]}  f5 {[%clk 0:00:18]} 57. Kg3 {[%clk 0:00:14]}  f4+ {[%clk 0:00:18]} 58. Kf3 {[%clk 0:00:14]}  Bf5 {[%clk 0:00:18]} 59. Ke2 {[%clk 0:00:14]}  h4 {[%clk 0:00:18]} 60. Nd5 {[%clk 0:00:15]}  Be4 {[%clk 0:00:15]} 61. Nc3 {[%clk 0:00:14]}  Bd3+ {[%clk 0:00:14]} 62. Ke1 {[%clk 0:00:14]}  Kf5 {[%clk 0:00:15]} 63. f3 {[%clk 0:00:14]}  h3 {[%clk 0:00:15]} 64. Kf2 {[%clk 0:00:14]}  e4 {[%clk 0:00:15]} 65. fxe4+ {[%clk 0:00:15]}  Bxe4 {[%clk 0:00:16]} 66. Kg1 {[%clk 0:00:15]}  Bc6 {[%clk 0:00:16]} 67. Kh2 {[%clk 0:00:15]}  Bg2 {[%clk 0:00:16]} 68. Ne2 {[%clk 0:00:14]}  Ke4 {[%clk 0:00:15]} 0-1


[Site "https://www.chess.com"]

[Event "Titled Tuesday Blitz June 6 Early 2023"]
[White "Sourath Biswas"]
[Black "Zhigalko, Sergei"]
[WhiteFideId "35091484"]
[BlackFideId "13502956"]
[WhiteElo "2171"]
[BlackElo "2626"]
[Result "0-1"]
[Round "10"]
[TimeControl "180+2"]
[Date "2023.06.06"]
[WhiteClock "0:00:01"]
[BlackClock "0:00:13"]
[Board "18"]

1. d4 {[%clk 0:02:56]}  Nf6 {[%clk 0:03:00]} 2. Nf3 {[%clk 0:02:54]}  e6 {[%clk 0:03:00]} 3. Bf4 {[%clk 0:02:54]}  b6 {[%clk 0:02:59]} 4. e3 {[%clk 0:02:54]}  Bb7 {[%clk 0:03:00]} 5. Be2 {[%clk 0:02:50]}  Nh5 {[%clk 0:03:00]} 6. Bg5 {[%clk 0:02:50]}  Be7 {[%clk 0:03:00]} 7. Bxe7 {[%clk 0:02:50]}  Qxe7 {[%clk 0:03:01]} 8. O-O {[%clk 0:02:50]}  O-O {[%clk 0:03:01]} 9. a4 {[%clk 0:02:46]}  a5 {[%clk 0:02:57]} 10. Na3 {[%clk 0:02:46]}  d6 {[%clk 0:02:55]} 11. Nb5 {[%clk 0:02:45]}  c6 {[%clk 0:02:52]} 12. Na3 {[%clk 0:02:45]}  Nd7 {[%clk 0:02:52]} 13. Nc4 {[%clk 0:02:43]}  Nhf6 {[%clk 0:02:50]} 14. c3 {[%clk 0:02:39]}  Ba6 {[%clk 0:02:43]} 15. Re1 {[%clk 0:02:33]}  Rfd8 {[%clk 0:02:40]} 16. Qc2 {[%clk 0:02:31]}  e5 {[%clk 0:02:37]} 17. e4 {[%clk 0:02:10]}  h6 {[%clk 0:02:33]} 18. Ne3 {[%clk 0:02:04]}  Bxe2 {[%clk 0:02:29]} 19. Rxe2 {[%clk 0:02:05]}  g6 {[%clk 0:02:28]} 20. Nc4 {[%clk 0:01:59]}  Qe6 {[%clk 0:01:42]} 21. Qd3 {[%clk 0:01:49]}  Kg7 {[%clk 0:01:20]} 22. h3 {[%clk 0:01:44]}  Nh5 {[%clk 0:00:58]} 23. d5 {[%clk 0:01:44]}  cxd5 {[%clk 0:00:41]} 24. exd5 {[%clk 0:01:45]}  Qf6 {[%clk 0:00:32]} 25. Qc2 {[%clk 0:01:32]}  Nf4 {[%clk 0:00:31]} 26. Re3 {[%clk 0:01:21]}  Nxd5 {[%clk 0:00:24]} 27. Rd3 {[%clk 0:01:22]}  Qe6 {[%clk 0:00:25]} 28. Rad1 {[%clk 0:01:17]}  N7f6 {[%clk 0:00:24]} 29. Qb3 {[%clk 0:00:28]}  Rab8 {[%clk 0:00:22]} 30. Re1 {[%clk 0:00:19]}  Nf4 {[%clk 0:00:20]} 31. Rde3 {[%clk 0:00:10]}  Rdc8 {[%clk 0:00:12]} 32. Ncd2 {[%clk 0:00:04]}  Qxb3 {[%clk 0:00:12]} 33. Nxb3 {[%clk 0:00:04]}  N6d5 {[%clk 0:00:12]} 34. Re4 {[%clk 0:00:01]}  f5 {[%clk 0:00:13]} 0-1


[Site "https://www.chess.com"]

[Event "Titled Tuesday Blitz June 6 Early 2023"]
[White "Harutjunyan, Gevorg"]
[Black "Kleiman, Jake"]
[WhiteFideId "13300873"]
[BlackFideId "2020041"]
[WhiteElo "2474"]
[BlackElo "2696"]
[Result "1/2-1/2"]
[Round "10"]
[TimeControl "180+2"]
[Date "2023.06.06"]
[WhiteClock "0:00:14"]
[BlackClock "0:00:06"]
[Board "21"]

1. e4 {[%clk 0:03:00]}  e5 {[%clk 0:03:00]} 2. Nf3 {[%clk 0:03:00]}  Nc6 {[%clk 0:03:00]} 3. d4 {[%clk 0:03:00]}  exd4 {[%clk 0:03:00]} 4. Nxd4 {[%clk 0:03:00]}  Bb4+ {[%clk 0:03:00]} 5. c3 {[%clk 0:02:57]}  Bc5 {[%clk 0:03:01]} 6. Be3 {[%clk 0:02:57]}  Bb6 {[%clk 0:03:01]} 7. Nf5 {[%clk 0:02:54]}  Bxe3 {[%clk 0:03:00]} 8. Nxe3 {[%clk 0:02:55]}  Nge7 {[%clk 0:03:00]} 9. c4 {[%clk 0:02:54]}  O-O {[%clk 0:03:00]} 10. Nc3 {[%clk 0:02:53]}  d6 {[%clk 0:03:01]} 11. Qd2 {[%clk 0:02:50]}  f5 {[%clk 0:03:00]} 12. O-O-O {[%clk 0:02:42]}  Be6 {[%clk 0:02:36]} 13. g3 {[%clk 0:02:36]}  fxe4 {[%clk 0:02:22]} 14. Nxe4 {[%clk 0:02:32]}  Nf5 {[%clk 0:02:18]} 15. Nd5 {[%clk 0:02:05]}  Nfd4 {[%clk 0:02:13]} 16. f4 {[%clk 0:01:54]}  Qd7 {[%clk 0:01:07]} 17. Qe3 {[%clk 0:01:42]}  Nf5 {[%clk 0:01:04]} 18. Qc3 {[%clk 0:01:42]}  h6 {[%clk 0:01:00]} 19. Bg2 {[%clk 0:01:29]}  Qf7 {[%clk 0:00:52]} 20. Rhe1 {[%clk 0:01:27]}  Rae8 {[%clk 0:00:52]} 21. g4 {[%clk 0:01:20]}  Nh4 {[%clk 0:00:52]} 22. Bh1 {[%clk 0:00:50]}  Bxd5 {[%clk 0:00:49]} 23. cxd5 {[%clk 0:00:51]}  Qxf4+ {[%clk 0:00:48]} 24. Kb1 {[%clk 0:00:51]}  Ne5 {[%clk 0:00:45]} 25. Ng3 {[%clk 0:00:39]}  Qf7 {[%clk 0:00:26]} 26. Rf1 {[%clk 0:00:32]}  Qd7 {[%clk 0:00:25]} 27. h3 {[%clk 0:00:30]}  Rxf1 {[%clk 0:00:22]} 28. Rxf1 {[%clk 0:00:31]}  Rf8 {[%clk 0:00:22]} 29. Rc1 {[%clk 0:00:32]}  Rf7 {[%clk 0:00:21]} 30. Be4 {[%clk 0:00:32]}  Qe7 {[%clk 0:00:17]} 31. Bf5 {[%clk 0:00:31]}  Kh8 {[%clk 0:00:13]} 32. Qd4 {[%clk 0:00:25]}  Nhf3 {[%clk 0:00:12]} 33. Qxa7 {[%clk 0:00:24]}  b6 {[%clk 0:00:12]} 34. Qb8+ {[%clk 0:00:23]}  Rf8 {[%clk 0:00:10]} 35. Qxc7 {[%clk 0:00:24]}  Nd2+ {[%clk 0:00:08]} 36. Ka1 {[%clk 0:00:23]}  Qg5 {[%clk 0:00:08]} 37. Qc3 {[%clk 0:00:18]}  Ndc4 {[%clk 0:00:06]} 38. b3 {[%clk 0:00:17]}  Ne3 {[%clk 0:00:07]} 39. h4 {[%clk 0:00:17]}  Qf4 {[%clk 0:00:06]} 40. Ne2 {[%clk 0:00:16]}  Qf2 {[%clk 0:00:07]} 41. Nd4 {[%clk 0:00:16]}  N3xg4 {[%clk 0:00:07]} 42. Bxg4 {[%clk 0:00:16]}  Nxg4 {[%clk 0:00:05]} 43. Ne6 {[%clk 0:00:17]}  Rf6 {[%clk 0:00:05]} 44. Qc8+ {[%clk 0:00:17]}  Kh7 {[%clk 0:00:05]} 45. Qc7 {[%clk 0:00:14]}  Rf7 {[%clk 0:00:05]} 46. Qxd6 {[%clk 0:00:13]}  Qd2 {[%clk 0:00:05]} 47. Qc6 {[%clk 0:00:12]}  Rf2 {[%clk 0:00:04]} 48. Nf8+ {[%clk 0:00:04]}  Rxf8 {[%clk 0:00:05]} 49. Qc2+ {[%clk 0:00:04]}  Qxc2 {[%clk 0:00:04]} 50. Rxc2 {[%clk 0:00:05]}  Rd8 {[%clk 0:00:05]} 51. Rd2 {[%clk 0:00:06]}  Ne3 {[%clk 0:00:05]} 52. d6 {[%clk 0:00:06]}  Rd7 {[%clk 0:00:05]} 53. b4 {[%clk 0:00:05]}  Nf5 {[%clk 0:00:05]} 54. Rd5 {[%clk 0:00:06]}  Nxd6 {[%clk 0:00:05]} 55. a4 {[%clk 0:00:06]}  Kg6 {[%clk 0:00:06]} 56. Kb2 {[%clk 0:00:06]}  Kf6 {[%clk 0:00:06]} 57. Kb3 {[%clk 0:00:07]}  Ke6 {[%clk 0:00:07]} 58. Rd1 {[%clk 0:00:08]}  Nf5 {[%clk 0:00:07]} 59. Re1+ {[%clk 0:00:09]}  Kf6 {[%clk 0:00:07]} 60. Rf1 {[%clk 0:00:10]}  Rd3+ {[%clk 0:00:07]} 61. Kc4 {[%clk 0:00:11]}  Rd4+ {[%clk 0:00:07]} 62. Kb5 {[%clk 0:00:11]}  Rxh4 {[%clk 0:00:08]} 63. Rb1 {[%clk 0:00:11]}  Re4 {[%clk 0:00:06]} 64. Kxb6 {[%clk 0:00:12]}  Nd4 {[%clk 0:00:06]} 65. b5 {[%clk 0:00:11]}  Ne6 {[%clk 0:00:06]} 66. a5 {[%clk 0:00:12]}  Ra4 {[%clk 0:00:07]} 67. a6 {[%clk 0:00:12]}  g5 {[%clk 0:00:07]} 68. a7 {[%clk 0:00:12]}  g4 {[%clk 0:00:08]} 69. Rc1 {[%clk 0:00:12]}  g3 {[%clk 0:00:07]} 70. Kb7 {[%clk 0:00:13]}  h5 {[%clk 0:00:07]} 71. a8=Q {[%clk 0:00:13]}  Rxa8 {[%clk 0:00:07]} 72. Kxa8 {[%clk 0:00:13]}  h4 {[%clk 0:00:08]} 73. b6 {[%clk 0:00:14]}  Nd8 {[%clk 0:00:06]} 74. Rd1 {[%clk 0:00:13]}  g2 {[%clk 0:00:06]} 75. Rxd8 {[%clk 0:00:09]}  g1=Q {[%clk 0:00:05]} 76. b7 {[%clk 0:00:10]}  Qa1+ {[%clk 0:00:05]} 77. Kb8 {[%clk 0:00:11]}  Qe5+ {[%clk 0:00:05]} 78. Kc8 {[%clk 0:00:11]}  Qc5+ {[%clk 0:00:05]} 79. Kd7 {[%clk 0:00:11]}  Qd5+ {[%clk 0:00:05]} 80. Kc7 {[%clk 0:00:12]}  Qc5+ {[%clk 0:00:05]} 81. Kd7 {[%clk 0:00:13]}  Qd5+ {[%clk 0:00:06]} 82. Kc7 {[%clk 0:00:13]}  Qa5+ {[%clk 0:00:06]} 83. Kc8 {[%clk 0:00:13]}  Qc5+ {[%clk 0:00:06]} 84. Kd7 {[%clk 0:00:14]} 1/2-1/2


[Site "https://www.chess.com"]